bitfinex-derivatives/quotes_SOLF0:USTF0_20241227
["timestamp","ask_amount","ask_price","bid_price","bid_amount"]
[1735318529650,12.74516825,184.17,184.05,3.56]
[1735318529843,2.7195,184.12,184.06,3.3028]
[1735318530951,2.7198,184.11,184.06,3.3028]
[1735318533654,2.7203,184.07,184.01,15.46626825]
[1735318533855,12.74516825,184.14,184.01,15.46626825]
[1735318533856,12.74516825,184.14,184.02,3.56]
[1735318534250,2.7203,184.07,184.02,3.56]
[1735318535251,2.7197,184.11,184.02,3.56]
[1735318535451,12.74516825,184.14,184.04,12.74516825]
[1735318535756,2.7198,184.1,184.05,2.7205]
[1735318535949,12.74516825,184.14,184.02,3.56]
[1735318536353,2.7202,184.08,184.02,3.56]
[1735318536553,12.74516825,184.14,184.02,3.56]
[1735318536955,12.74516825,184.11,184.02,3.56]
[1735318537658,2.7204,184.07,184.02,3.56]
[1735318539653,2.7199,184.1,184.04,2.7207]
[1735318539852,12.74516825,184.17,184.02,16.30516825]
[1735318540047,3.1699,184.19,184.05,12.74516825]
[1735318540251,2.7196,184.12,184.06,2.7204]
[1735318541956,2.7192,184.14,184.05,12.74516825]
[1735318542353,12.74516825,184.18,184.05,12.74516825]
[1735318542557,12.74516825,184.18,184.07,2.7201]
[1735318542755,12.74516825,184.18,184.08,3.56]
[1735318543662,2.7195,184.13,184.08,3.56]
[1735318545164,2.7195,184.13,184.08,6.2801]
[1735318545564,2.7198,184.11,184.05,2.7205]
[1735318545762,12.74516825,184.15,184.06,3.56]
[1735318546158,2.7194,184.14,184.07,2.7201]
[1735318546358,2.7194,184.14,184.06,3.56]
[1735318547564,2.7194,184.14,184.09,2.7199]
[1735318547966,1.6107,184.19,184.12,2.7195]
[1735318548269,229.41618103,184.32,184.13,3.56]
[1735318548270,12.74516825,184.24,184.13,3.56]
[1735318549569,2.7182,184.21,184.16,2.7189]
[1735318551570,2.7182,184.21,184.15,2.7191]
[1735318551864,2.7187,184.18,184.16,3.56]
[1735318552264,12.74516825,184.24,184.16,3.56]
[1735318552467,2.7184,184.2,184.16,3.56]
[1735318555672,12.74516825,184.27,184.16,3.56]
[1735318555867,1.6373,184.3,184.17,16.00816825]
[1735318556168,14.38246825,184.3,184.17,17.65776825]
[1735318556563,2.7173,184.27,184.21,2.718]
[1735318556769,2.7173,184.27,184.22,3.56]
[1735318556966,1.6373,184.3,184.22,3.56]
[1735318557269,14.41236825,184.34,184.23,12.74516825]
[1735318557470,14.38276825,184.37,184.23,12.74516825]
[1735318557764,2.7167,184.32,184.25,2.7175]
[1735318558171,14.38276825,184.37,184.25,2.7175]
[1735318558561,2.7168,184.31,184.25,2.7175]
[1735318559469,2.7168,184.31,184.26,2.7174]
[1735318559872,14.38276825,184.37,184.26,2.7174]
[1735318560075,2.7166,184.32,184.26,2.7174]
[1735318561275,2.7168,184.31,184.25,3.3316]
[1735318562481,2.7168,184.31,184.25,6.0492]
[1735318565175,14.38276825,184.37,184.25,3.3316]
[1735318565778,14.38276825,184.37,184.26,12.74516825]
[1735318565981,2.7158,184.36,184.29,2.7167]
[1735318566180,2.7158,184.36,184.3,3.56]
[1735318567080,1.6376,184.37,184.3,3.56]
[1735318567982,12.74516825,184.4,184.3,3.56]
[1735318568179,2.7154,184.38,184.32,2.7163]
[1735318568782,2.7156,184.37,184.32,2.7163]
[1735318569873,12.74516825,184.4,184.3,3.56]
[1735318570674,2.7156,184.37,184.3,3.56]
[1735318571180,12.74516825,184.4,184.3,3.56]
[1735318572486,12.74516825,184.43,184.3,3.56]
[1735318572885,2.7156,184.37,184.32,2.7163]
[1735318573088,2.7156,184.37,184.3,3.56]
[1735318573587,3.0979,184.45,184.3,3.56]
[1735318573588,12.74516825,184.4,184.3,3.56]
[1735318573782,12.74516825,184.37,184.25,3.3316]
[1735318573987,1.6174,184.36,184.26,3.56]
[1735318574282,2.7169,184.28,184.23,2.7175]
[1735318574482,12.74516825,184.34,184.24,3.56]
[1735318574687,12.74516825,184.31,184.24,3.56]
[1735318575281,12.74516825,184.31,184.21,2.7178]
[1735318575482,2.717,184.27,184.22,3.56]
[1735318576288,2.717,184.27,184.21,2.7178]
[1735318576489,12.74516825,184.31,184.22,3.56]
[1735318578093,12.74516825,184.31,184.19,12.74516825]
[1735318578289,2.7176,184.23,184.19,12.74516825]
[1735318578489,12.74516825,184.28,184.2,3.56]
[1735318578689,3.1459,184.27,184.21,3.56]
[1735318578889,3.1459,184.27,184.22,3.56]
[1735318579094,2.7176,184.23,184.22,3.56]
[1735318579691,3.1459,184.27,184.16,12.74516825]
[1735318579888,2.7178,184.22,184.17,6.2785]
[1735318580194,3.1459,184.27,184.17,3.56]
[1735318580394,2.7176,184.23,184.18,2.7183]
[1735318581090,2.7174,184.25,184.17,3.56]
[1735318581786,15.89106825,184.27,184.18,3.56]
[1735318583288,15.89106825,184.27,184.19,3.56]
[1735318583786,15.89106825,184.27,184.18,3.56]
[1735318583787,12.74516825,184.24,184.18,3.56]
[1735318584292,2.719,184.14,184.13,3.56]
[1735318584691,12.74516825,184.21,184.11,3.56]
[1735318584882,12.74516825,184.18,184.11,3.56]
[1735318585087,12.74516825,184.21,184.11,3.56]
[1735318585393,2.7189,184.14,184.11,3.56]
[1735318585794,12.74516825,184.21,184.11,3.56]
[1735318586195,2.7191,184.13,184.11,3.56]
[1735318587086,12.74516825,184.23,184.11,3.56]
[1735318587491,2.7192,184.12,184.11,3.56]
[1735318588294,1.6451,184.18,184.11,3.56]
[1735318588492,2.7191,184.13,184.11,3.56]
[1735318588893,2.7186,184.16,184.11,3.56]
[1735318589295,12.74516825,184.23,184.11,3.56]
[1735318589493,2.7185,184.18,184.12,2.7192]
[1735318589695,12.74516825,184.23,184.11,3.56]
[1735318590498,12.74516825,184.23,184.11,16.30516825]
[1735318592099,14.39026825,184.26,184.11,16.30516825]
[1735318592292,14.39026825,184.26,184.14,12.74516825]
[1735318592701,2.7182,184.2,184.14,15.46396825]
[1735318593199,2.7182,184.19,184.14,15.46396825]
[1735318593996,2.7185,184.18,184.12,3.2006]
[1735318594300,12.74516825,184.23,184.11,16.30516825]
[1735318595096,1.6451,184.26,184.11,16.30516825]
[1735318595295,12.74516825,184.25,184.11,16.30516825]
[1735318595497,12.74516825,184.25,184.14,12.74516825]
[1735318596396,2.718,184.21,184.15,2.7187]
[1735318597802,2.7178,184.22,184.14,12.74516825]
[1735318597995,121.5820124,184.31,184.2,12.74516825]
[1735318598196,121.5820124,184.31,184.21,3.56]
[1735318598397,108.83684415,184.31,184.21,3.56]
[1735318598695,108.83684415,184.31,184.23,12.74516825]
[1735318599197,1.598,184.33,184.24,1.6831]
[1735318599398,2.7163,184.32,184.24,1.6831]
[1735318599596,12.74516825,184.37,184.26,12.74516825]
[1735318599901,1.5438,184.39,184.27,3.56]
[1735318600102,1.5438,184.39,184.29,12.74516825]
[1735318601501,2.716,184.35,184.29,12.74516825]
[1735318602497,1.5438,184.39,184.29,12.74516825]
[1735318602900,1.5438,184.39,184.3,1.6721]
[1735318604505,4.2592,184.39,184.32,2.7163]
[1735318604705,4.2592,184.39,184.33,3.56]
[1735318605201,2.7151,184.41,184.33,6.2761]
[1735318605403,108.7587913,184.43,184.35,12.74516825]
[1735318605603,111.4734913,184.43,184.36,2.7156]
[1735318606602,2.7147,184.43,184.36,2.7156]
[1735318608303,2.7145,184.45,184.37,2.7155]
[1735318608702,12.74516825,184.47,184.37,2.7155]
[1735318608903,2.7145,184.44,184.37,2.7155]
[1735318609810,2.7145,184.44,184.38,2.7154]
[1735318610006,2.7145,184.44,184.39,3.56]
[1735318611399,2.7144,184.45,184.39,6.2752]
[1735318613616,2.7139,184.48,184.41,2.7149]
[1735318614401,2.7139,184.48,184.41,15.46006825]
[1735318617113,2.7139,184.48,184.42,2.7148]
[1735318618911,12.74516825,184.5,184.41,12.74516825]
[1735318619111,12.74516825,184.47,184.39,1.6446]
[1735318619309,12.74516825,184.47,184.35,14.38256825]
[1735318619507,2.7157,184.36,184.33,5.122]
[1735318619709,12.74516825,184.41,184.29,15.46176825]
[1735318619910,1.5908,184.4,184.33,3.54]
[1735318620107,1.6354,184.46,184.33,3.54]
[1735318620312,1.6354,184.46,184.35,12.74516825]
[1735318621416,2.7148,184.42,184.36,2.7157]
[1735318625121,14.33596825,184.49,184.37,2.7155]
[1735318625618,14.33596825,184.49,184.38,12.74516825]
[1735318625816,2.7146,184.44,184.39,3.54]
[1735318626122,1.5908,184.49,184.39,3.54]
[1735318626321,14.33866825,184.52,184.39,3.54]
[1735318626322,14.33866825,184.52,184.42,2.7148]
[1735318627419,2.714,184.48,184.42,2.7148]
[1735318629821,14.28506825,184.55,184.41,12.74516825]
[1735318630023,2.7131,184.54,184.48,2.7139]
[1735318630225,2.7131,184.54,184.49,3.54]
[1735318630421,16.11636825,184.61,184.5,15.45876825]
[1735318630625,16.11636825,184.61,184.5,12.74516825]
[1735318631017,2.7132,184.54,184.5,12.74516825]
[1735318631224,12.74516825,184.58,184.49,3.54]
[1735318631621,3.3712,184.61,184.49,6.2538]
[1735318631822,3.3712,184.61,184.5,12.74516825]
[1735318632922,3.3712,184.61,184.5,15.45866825]
[1735318632923,2.7127,184.57,184.5,15.45866825]
[1735318633628,16.11636825,184.61,184.5,12.74516825]
[1735318633825,2.7128,184.56,184.5,12.74516825]
[1735318634023,12.74516825,184.58,184.49,3.54]
[1735318634225,12.74516825,184.55,184.46,30.05377554]
[1735318634433,12.74516825,184.55,184.46,33.59377554]
[1735318634824,2.7136,184.51,184.46,33.59377554]
[1735318635126,12.74516825,184.55,184.46,3.54]
[1735318635322,2.7138,184.49,184.46,3.54]
[1735318635521,3.3712,184.61,184.46,3.54]
[1735318635721,12.74516825,184.57,184.46,3.54]
[1735318636322,2.7131,184.54,184.46,3.54]
[1735318636527,12.74516825,184.57,184.46,3.54]
[1735318637432,12.74516825,184.57,184.47,12.74516825]
[1735318637726,2.7132,184.54,184.48,2.7139]
[1735318640231,2.7132,184.53,184.47,15.45926825]
[1735318641230,12.74516825,184.6,184.47,12.74516825]
[1735318642029,2.7133,184.53,184.47,15.45926825]
[1735318642929,2.713,184.55,184.5,12.74516825]
[1735318643130,3.3712,184.61,184.5,12.74516825]
[1735318643523,12.74516825,184.6,184.5,12.74516825]
[1735318644122,1.7003,184.61,184.5,12.74516825]
[1735318644322,1.7003,184.61,184.53,12.74516825]
[1735318644728,12.74516825,184.55,184.47,7.44391203]
[1735318645128,2.7138,184.49,184.48,5.00114887]
[1735318645328,12.74516825,184.52,184.47,7.44391203]
[1735318645528,12.74516825,184.52,184.48,7.44391203]
[1735318645725,2.7138,184.49,184.48,7.44391203]
[1735318646429,2.7142,184.47,184.44,3.54]
[1735318646728,2.7142,184.47,184.45,3.54]
[1735318647330,2.7142,184.46,184.45,3.54]
[1735318647932,12.74516825,184.49,184.39,7.44391203]
[1735318648236,20.35346405,184.5,184.4,3.54]
[1735318649135,2.715,184.41,184.4,3.54]
[1735318649632,2.7148,184.43,184.4,3.54]
[1735318649841,20.35346405,184.49,184.4,3.54]
[1735318650227,2.7147,184.43,184.4,3.54]
[1735318653341,2.7148,184.42,184.4,3.54]
[1735318654737,20.35346405,184.52,184.4,3.54]
[1735318654738,2.715,184.41,184.4,3.54]
[1735318655437,2.7148,184.43,184.4,3.54]
[1735318656036,20.35346405,184.52,184.37,1.5634]
[1735318656240,20.35346405,184.49,184.37,1.5634]
[1735318656634,2.7154,184.39,184.38,3.54]
[1735318656839,20.35346405,184.49,184.37,1.5634]
[1735318657145,2.7153,184.39,184.38,3.54]
[1735318659241,2.7151,184.41,184.38,3.54]
[1735318662947,20.35346405,184.52,184.38,3.54]
[1735318663147,5.1946,184.53,184.38,3.54]
[1735318663148,2.7145,184.45,184.38,3.54]
[1735318663343,1.6546,184.53,184.39,3.2199]
[1735318663847,2.7144,184.46,184.4,2.715]
[1735318664046,1.6546,184.53,184.39,3.2199]
[1735318664247,2.7146,184.44,184.39,5.9351]
[1735318664444,1.6546,184.53,184.39,3.2199]
[1735318665548,2.7143,184.46,184.41,2.715]
[1735318666049,2.715,184.41,184.39,3.54]
[1735318666639,2.7151,184.4,184.39,3.54]
[1735318667849,20.35346405,184.46,184.34,29.77564814]
[1735318668045,2.7158,184.35,184.31,2.7163]
[1735318668246,1.856,184.45,184.33,3.54]
[1735318668641,2.7156,184.37,184.33,3.54]
[1735318668847,1.856,184.45,184.29,7.44391203]
[1735318669149,2.715,184.41,184.3,6.2566]
[1735318669350,1.856,184.45,184.3,6.2566]
[1735318669548,20.35346405,184.43,184.3,2.7166]
[1735318669851,20.35346405,184.4,184.29,3.54]
[1735318670842,20.35346405,184.4,184.24,29.77564814]
[1735318671048,20.35346405,184.37,184.24,33.31564814]
[1735318671239,20.35346405,184.34,184.24,33.31564814]
[1735318671443,20.35346405,184.34,184.24,3.54]
[1735318672443,20.35346405,184.34,184.25,3.54]
[1735318672644,20.35346405,184.34,184.24,3.54]
[1735318672848,20.35346405,184.34,184.17,56.42]
[1735318673045,2.7178,184.22,184.18,3.54]
[1735318673248,20.35346405,184.34,184.18,3.54]
[1735318673645,20.35346405,184.31,184.19,3.54]
[1735318674247,20.35346405,184.28,184.11,29.77564814]
[1735318674452,1.6029,184.27,184.12,3.54]
[1735318674851,1.6029,184.27,184.12,5.144]
[1735318675053,20.35346405,184.25,184.11,29.77564814]
[1735318675351,23.89346405,184.25,184.12,3.54]
[1735318676051,20.35346405,184.22,184.09,3.54]
[1735318676844,20.35346405,184.25,184.09,3.54]
[1735318677051,20.35346405,184.25,184.09,23.89346405]
[1735318677248,3.8462,184.26,184.12,20.35346405]
[1735318677444,2.7184,184.18,184.12,20.35346405]
[1735318677656,3.8462,184.26,184.12,20.35346405]
[1735318678250,0.3062,184.26,184.12,20.35346405]
[1735318679047,1.6029,184.27,184.14,2.7189]
[1735318679256,1.6029,184.27,184.15,8.246]
[1735318679645,2.718,184.21,184.15,8.246]
[1735318680055,23.89346405,184.32,184.16,2.7186]
[1735318680250,2.7169,184.28,184.18,20.35346405]
[1735318680554,1.6894,184.34,184.15,8.246]
[1735318680751,1.6894,184.34,184.21,20.35346405]
[1735318681050,2.7167,184.3,184.22,3.54]
[1735318681255,20.35346405,184.37,184.22,3.54]
[1735318681458,2.7168,184.29,184.23,4.3872]
[1735318682159,2.7168,184.29,184.23,1.6696]
[1735318682857,20.35346405,184.37,184.23,1.6696]
[1735318683054,2.7169,184.28,184.23,1.6696]
[1735318683250,20.35346405,184.37,184.23,1.6696]
[1735318683457,20.35346405,184.37,184.23,4.3872]
[1735318683663,2.7167,184.3,184.23,4.3872]
[1735318683961,20.35346405,184.37,184.23,1.6696]
[1735318684261,20.35346405,184.37,184.24,2.7174]
[1735318684753,22.04286405,184.4,184.25,1.6836]
[1735318684948,22.04286405,184.4,184.26,1.6738]
[1735318685157,2.716,184.34,184.26,1.6738]
[1735318685358,22.04286405,184.4,184.27,3.54]
[1735318685658,2.7157,184.37,184.27,3.54]
[1735318685862,22.04286405,184.4,184.27,3.54]
[1735318686359,2.7169,184.29,184.27,3.54]
[1735318688860,20.35346405,184.37,184.27,3.54]
[1735318688861,2.7166,184.31,184.27,3.54]
[1735318689258,20.35346405,184.37,184.27,3.54]
[1735318690561,2.7166,184.3,184.27,3.54]
[1735318695065,12.73566384,184.34,184.27,3.54]
[1735318695462,2.717,184.27,184.26,1.6738]
[1735318695656,5.2294,184.4,184.26,1.6738]
[1735318695657,12.73566384,184.31,184.26,3.54]
[1735318696066,2.717,184.27,184.26,3.54]
[1735318697465,2.7172,184.26,184.23,1.6696]
[1735318697667,2.7172,184.26,184.24,3.54]
[1735318697973,2.7167,184.29,184.24,3.54]
[1735318698265,12.73566384,184.31,184.23,1.6696]
[1735318698462,12.73566384,184.31,184.24,3.54]
[1735318698667,2.7173,184.26,184.24,3.54]
[1735318699862,2.7167,184.29,184.24,3.54]
[1735318700065,12.73566384,184.31,184.24,3.54]
[1735318700769,2.7173,184.25,184.24,3.54]
[1735318701270,12.73566384,184.31,184.21,1.5411]
[1735318701464,2.7178,184.23,184.21,1.5411]
[1735318701661,12.73566384,184.28,184.22,3.54]
[1735318702071,12.73566384,184.28,184.15,10.71681203]
[1735318702371,12.73566384,184.25,184.16,3.54]
[1735318703073,12.73566384,184.28,184.16,16.27566384]
[1735318703373,2.7178,184.22,184.16,16.27566384]
[1735318704473,2.7178,184.22,184.17,2.7185]
[1735318705765,2.7176,184.24,184.18,2.7183]
[1735318705971,1.5835,184.3,184.18,2.7183]
[1735318706470,1.5835,184.3,184.16,16.27566384]
[1735318706675,2.7178,184.23,184.17,2.7185]
[1735318707571,2.7178,184.23,184.18,2.7183]
[1735318708380,12.73566384,184.28,184.16,10.98391203]
[1735318709174,2.718,184.21,184.16,13.70251203]
[1735318709370,12.73566384,184.28,184.16,10.98391203]
[1735318709575,12.73566384,184.28,184.16,3.54]
[1735318709771,2.7182,184.2,184.16,3.54]
[1735318710679,12.73566384,184.28,184.16,3.54]
[1735318710986,2.7179,184.22,184.16,3.54]
[1735318711796,2.7179,184.21,184.16,6.2586]
[1735318712085,12.73566384,184.32,184.18,12.73566384]
[1735318712389,12.73566384,184.32,184.21,12.73566384]
[1735318712690,12.73566384,184.32,184.22,3.54]
[1735318713082,12.73566384,184.35,184.22,3.54]
[1735318713279,1.5375,184.37,184.22,3.54]
[1735318713489,1.5375,184.37,184.26,2.7171]
[1735318714385,1.5375,184.37,184.25,1.5633]
[1735318714580,1.5375,184.37,184.27,2.717]
[1735318714785,1.5375,184.37,184.28,3.54]
[1735318715092,1.5375,184.37,184.29,2.7167]
[1735318715391,2.7162,184.33,184.28,3.54]
[1735318715790,14.40996384,184.41,184.28,3.54]
[1735318716291,2.7162,184.33,184.28,6.2569]
[1735318716786,14.40996384,184.41,184.28,3.54]
[1735318716985,12.73566384,184.38,184.28,3.54]
[1735318717189,12.73566384,184.38,184.28,6.2569]
[1735318717885,2.7162,184.33,184.28,6.2569]
[1735318718088,2.7162,184.33,184.28,2.7169]
[1735318718294,12.73566384,184.38,184.27,12.73566384]
[1735318718497,12.73566384,184.38,184.29,3.54]
[1735318719587,1.6743,184.41,184.29,6.2566]
[1735318719793,14.40996384,184.41,184.29,3.54]
[1735318720291,1.6743,184.41,184.3,12.73566384]
[1735318721203,2.7156,184.37,184.3,12.73566384]
[1735318721690,2.7154,184.39,184.33,2.7161]
[1735318722098,2.7154,184.39,184.34,1.5621]
[1735318722400,2.7154,184.39,184.35,3.54]
[1735318722787,1.6276,184.47,184.35,3.54]
[1735318722788,2.7151,184.4,184.35,3.54]
[1735318722992,14.36326384,184.47,184.35,3.54]
[1735318723499,14.36326384,184.47,184.36,12.73566384]
[1735318724387,2.7146,184.44,184.38,2.7153]
[1735318724592,2.7146,184.44,184.36,12.73566384]
[1735318724993,2.7144,184.46,184.39,2.7153]
[1735318725196,12.73566384,184.5,184.39,15.45096384]
[1735318725796,2.7145,184.44,184.39,12.73566384]
[1735318726098,12.73566384,184.5,184.39,12.73566384]
[1735318726298,2.7141,184.48,184.41,2.7148]
[1735318726500,12.73566384,184.53,184.42,3.54]
[1735318726692,12.73566384,184.53,184.42,16.27566384]
[1735318726893,1.6488,184.54,184.43,3.2754]
[1735318727691,2.7135,184.51,184.44,2.7145]
[1735318727900,1.6488,184.54,184.44,2.7145]
[1735318728199,1.6488,184.54,184.32,12.73566384]
[1735318728200,12.73566384,184.47,184.34,7.44391203]
[1735318728400,1.6488,184.54,184.35,3.54]
[1735318728401,2.714,184.48,184.35,3.54]
[1735318728597,12.73566384,184.47,184.35,3.54]
[1735318729399,12.73566384,184.47,184.36,15.45136384]
[1735318730497,2.7148,184.42,184.36,15.45136384]
[1735318731404,2.7148,184.42,184.36,2.7157]
[1735318734609,12.73566384,184.47,184.35,3.54]
[1735318734902,12.73566384,184.44,184.36,3.54]
[1735318735100,12.73566384,184.41,184.28,7.44391203]
[1735318735299,12.73566384,184.41,184.29,3.54]
[1735318735496,12.73566384,184.44,184.31,12.73566384]
[1735318735897,2.7153,184.39,184.32,2.7163]
[1735318736099,12.73566384,184.44,184.32,2.7163]
[1735318736496,2.7157,184.36,184.31,12.73566384]
[1735318736696,12.73566384,184.44,184.32,3.54]
[1735318737202,2.7151,184.41,184.32,6.2563]
[1735318737403,12.73566384,184.44,184.32,6.2563]
[1735318737807,2.7155,184.38,184.32,6.2563]
[1735318739499,2.7151,184.41,184.35,2.7159]
[1735318739998,14.40916384,184.46,184.34,12.73566384]
[1735318740203,2.7156,184.37,184.33,1.6746]
[1735318741108,2.7151,184.4,184.33,1.6746]
[1735318741308,12.73566384,184.43,184.33,1.6746]
[1735318742202,14.40916384,184.46,184.34,12.73566384]
[1735318742703,14.40916384,184.46,184.35,1.6069]
[1735318743106,2.7147,184.43,184.38,2.7154]
[1735318743409,2.7147,184.43,184.39,3.54]
[1735318748007,14.40916384,184.46,184.39,3.54]
[1735318749110,2.7149,184.42,184.39,3.54]
[1735318749514,14.40916384,184.46,184.39,3.54]
[1735318749711,12.73566384,184.49,184.39,3.54]
[1735318751411,2.7146,184.44,184.4,2.7151]
[1735318751715,12.73566384,184.49,184.39,3.54]
[1735318754113,2.7148,184.43,184.39,3.54]
[1735318754417,12.73566384,184.49,184.4,2.7151]
[1735318754610,2.7145,184.45,184.4,2.7151]
[1735318754808,12.73566384,184.49,184.4,2.7151]
[1735318755214,2.7145,184.45,184.41,2.715]
[1735318756122,12.73566384,184.49,184.41,2.715]
[1735318756318,2.7143,184.46,184.42,2.7148]
[1735318756619,14.37966384,184.52,184.4,14.38276384]
[1735318756812,14.37966384,184.52,184.43,2.7147]
[1735318757513,2.7143,184.46,184.42,2.7148]
[1735318758115,1.644,184.52,184.43,12.73566384]
[1735318758909,2.7138,184.5,184.45,2.7145]
[1735318759117,2.7138,184.5,184.46,3.54]
[1735318759712,1.5495,184.56,184.46,3.54]
[1735318759919,2.7143,184.47,184.46,3.54]
[1735318769325,12.73566384,184.51,184.46,3.52]
[1735318770128,2.7143,184.47,184.46,3.52]
[1735318774738,8.13768254,184.49,184.43,8.13768254]
[1735318774940,2.7146,184.45,184.44,3.52]
[1735318775238,8.13768254,184.49,184.44,3.52]
[1735318775440,2.7146,184.45,184.44,3.52]
[1735318775937,2.7145,184.46,184.44,3.52]
[1735318776531,8.13768254,184.49,184.44,3.52]
[1735318776731,2.7143,184.47,184.44,3.52]
[1735318777142,8.13768254,184.49,184.44,3.52]
[1735318778139,2.7145,184.46,184.44,3.52]
[1735318778339,1.5495,184.56,184.44,3.52]
[1735318778541,8.13768254,184.51,184.44,3.52]
[1735318779340,2.7141,184.49,184.45,8.13768254]
[1735318779541,2.7141,184.49,184.44,6.2347]
[1735318779542,2.7141,184.49,184.47,8.13768254]
[1735318780449,8.13768254,184.54,184.47,8.13768254]
[1735318780642,2.7137,184.52,184.49,8.13768254]
[1735318780839,8.13768254,184.54,184.5,3.52]
[1735318781646,2.7137,184.51,184.5,3.52]
[1735318783354,2.7137,184.51,184.49,8.13768254]
[1735318783355,1.5495,184.56,184.49,8.13768254]
[1735318783654,8.13768254,184.6,184.52,8.13768254]
[1735318783947,2.7132,184.55,184.52,8.13768254]
[1735318786941,2.713,184.57,184.54,8.13768254]
[1735318788146,2.7136,184.52,184.48,1.5368]
[1735318788452,1.5478,184.62,184.49,3.52]
[1735318788453,8.13768254,184.54,184.49,3.52]
[1735318789150,2.7137,184.52,184.49,3.52]
[1735318789952,8.13768254,184.54,184.49,3.52]
[1735318790141,2.7137,184.51,184.49,3.52]
[1735318791450,2.7137,184.51,184.48,9.67448254]
[1735318791651,2.7137,184.51,184.49,3.52]
[1735318792148,8.13768254,184.52,184.5,3.52]
[1735318792949,2.7137,184.51,184.5,3.52]
[1735318796252,2.7139,184.5,184.47,9.76648254]
[1735318796551,1.5478,184.62,184.48,3.52]
[1735318796752,2.7137,184.52,184.48,3.52]
[1735318797153,8.13768254,184.54,184.48,3.52]
[1735318798056,2.7139,184.5,184.48,3.52]
[1735318798853,2.7136,184.52,184.49,8.13768254]
[1735318800556,8.13768254,184.54,184.48,3.52]
[1735318801457,2.7138,184.51,184.48,3.52]
[1735318802260,2.714,184.49,184.48,3.52]
[1735318802453,8.13768254,184.52,184.48,3.52]
[1735318802654,8.13768254,184.52,184.49,3.52]
[1735318802960,1.5478,184.62,184.43,7.44391203]
[1735318802961,8.13768254,184.54,184.43,7.44391203]
[1735318803162,8.13768254,184.52,184.46,8.13768254]
[1735318803458,2.7142,184.48,184.46,8.13768254]
[1735318803863,8.13768254,184.53,184.44,6.2346]
[1735318804159,8.13768254,184.51,184.42,3.3819]
[1735318804359,8.13768254,184.49,184.43,8.13768254]
[1735318804562,2.7146,184.46,184.44,3.52]
[1735318804861,8.13768254,184.51,184.45,8.13768254]
[1735318805062,8.13768254,184.53,184.45,10.85228254]
[1735318805959,9.49645221,184.61,184.47,8.13768254]
[1735318806165,8.13768254,184.56,184.49,8.13768254]
[1735318806365,8.13768254,184.56,184.5,3.52]
[1735318807155,8.13768254,184.54,184.5,3.52]
[1735318808666,2.7134,184.53,184.5,3.52]
[1735318808966,8.13768254,184.54,184.5,3.52]
[1735318809163,2.7137,184.51,184.5,3.52]
[1735318810365,2.7139,184.5,184.46,8.13768254]
[1735318810565,2.7139,184.5,184.47,3.52]
[1735318810868,8.13768254,184.54,184.47,3.52]
[1735318811064,2.7137,184.51,184.48,8.13768254]
[1735318811271,8.13768254,184.56,184.48,8.13768254]
[1735318811670,2.7135,184.53,184.48,10.85178254]
[1735318811974,2.7135,184.53,184.5,8.13768254]
[1735318812565,2.7137,184.51,184.48,8.13768254]
[1735318813066,8.13768254,184.57,184.48,8.13768254]
[1735318813269,2.7136,184.53,184.5,8.13768254]
[1735318813667,2.7132,184.55,184.5,10.85148254]
[1735318814074,2.7132,184.55,184.52,8.13768254]
[1735318814266,2.7132,184.55,184.53,3.52]
[1735318814769,2.7129,184.57,184.53,3.52]
[1735318815073,8.13768254,184.59,184.53,3.52]
[1735318815970,1.5478,184.62,184.54,8.13768254]
[1735318816172,9.68548254,184.62,184.54,8.13768254]